bitfinex/quotes_ETHUSD_20260226
["timestamp","ask_amount","ask_price","bid_price","bid_amount"]
[1772096793715,0.48704561,2061.7,2060.8,0.4825843]
[1772096793912,0.48704561,2061.5,2060.8,1.69569059]
[1772096794094,1.37468267,2061.9,2061.1,0.4825843]
[1772096794294,1.86172828,2061.9,2061.1,0.4825843]
[1772096794509,0.64925131,2061.9,2061.1,0.4825843]
[1772096794732,1.86172587,2061.9,2061.1,0.4825843]
[1772096795092,0.64925131,2061.9,2061.1,0.4825843]
[1772096795692,0.1622057,2061.9,2061.4,0.46054696]
[1772096795892,0.1622057,2061.9,2061.6,0.46054696]
[1772096796723,0.47248039,2062.2,2061.5,0.46054696]
[1772096797114,1.68478655,2062.2,2061.5,0.46054696]
[1772096797420,0.47248039,2062.2,2061.5,0.46054696]
[1772096797620,1.21227934,2062.3,2061.5,0.46054696]
[1772096797824,1.21227934,2062.3,2061.4,2.69912756]
[1772096797825,0.47248039,2062.3,2061.6,0.46054696]
[1772096798117,0.47248039,2062.3,2061.3,0.46054696]
[1772096798498,0.47248039,2062.0,2060.9,0.46054696]
[1772096798698,0.47248039,2061.8,2060.9,0.46054696]
[1772096799532,0.47248039,2061.8,2061.2,0.46054696]
[1772096799708,2.7418136,2061.6,2060.6,0.45332439]
[1772096799908,0.47248039,2061.2,2060.9,0.001]
[1772096800219,0.47248039,2061.1,2060.2,0.46054696]
[1772096800421,0.47248039,2061.1,2060.6,0.001]
[1772096801803,1.21300339,2061.0,2060.6,0.001]
[1772096802705,0.47248039,2060.9,2060.1,3.17917984]
[1772096802909,0.47248039,2060.9,2059.9,2.46116]
[1772096803133,0.47248039,2060.9,2060.0,0.46054696]
[1772096804437,1.21312111,2060.8,2060.2,0.46054696]
[1772096805948,1.21232111,2060.8,2060.2,0.46054696]
[1772096806239,1.21232111,2060.8,2060.2,0.45974696]
[1772096806632,1.21232111,2060.8,2060.2,1.67321693]
[1772096806837,1.68558463,2060.9,2060.3,0.46054696]
[1772096807938,0.47248039,2060.9,2060.4,0.46054696]
[1772096808141,1.68554854,2060.9,2060.4,0.46054696]
[1772096808322,0.47248039,2060.8,2060.2,0.46054696]
[1772096810736,1.68552338,2061.0,2060.4,0.46054696]
[1772096812222,1.68548826,2061.0,2060.4,0.46054696]
[1772096812536,0.47248039,2060.9,2060.2,0.46054696]
[1772096812947,0.47248039,2060.7,2059.9,0.46154696]
[1772096813252,0.47248039,2060.6,2059.9,0.46154696]
[1772096813651,0.47248039,2060.6,2059.9,1.67519784]
[1772096813854,0.47248039,2060.6,2060.0,0.46054696]
[1772096814081,0.47248039,2060.6,2060.4,0.001]
[1772096814367,0.47448039,2060.6,2060.4,0.001]
[1772096815354,0.002,2060.6,2060.4,0.001]
[1772096817572,1.21312111,2060.8,2060.4,0.001]
[1772096818269,1.70022708,2060.8,2060.4,0.001]
[1772096820487,0.48710597,2060.7,2060.1,0.001]
[1772096820687,0.48710597,2060.7,2059.9,0.001]
[1772096821266,0.48710597,2060.7,2060.0,0.4918604]
[1772096822876,1.70034483,2060.6,2060.0,1.70544884]
[1772096823275,1.70034483,2060.6,2060.0,0.4918604]
[1772096823476,8.35680744,2061.6,2060.1,0.4918604]
[1772096823477,0.48710597,2061.0,2060.1,0.4918604]
[1772096823671,0.48710597,2061.0,2060.3,2.57154778]
[1772096824083,0.48710597,2061.0,2060.3,0.4918604]
[1772096825198,1.21306225,2060.9,2060.3,1.70525337]
[1772096825896,0.48710597,2061.0,2060.3,1.70525337]
[1772096826193,0.48710597,2061.0,2060.4,0.4918604]
[1772096826896,1.70011019,2061.0,2060.4,0.4918604]
[1772096827398,1.70011019,2061.0,2060.4,1.7051906]
[1772096827565,0.48710597,2060.9,2060.4,0.4918604]
[1772096827966,0.48710597,2060.9,2060.4,1.70521511]
[1772096828367,0.48710597,2061.6,2060.6,2.07968738]
[1772096828596,0.48710597,2061.6,2060.7,0.4918604]
[1772096828799,0.002,2061.0,2060.7,0.4918604]
[1772096829187,1.21463794,2061.7,2061.0,0.4918604]
[1772096829188,0.002,2061.3,2061.0,0.4918604]
[1772096829408,0.002,2061.7,2061.1,0.4918604]
[1772096831513,1.21459155,2061.7,2061.1,1.70477707]
[1772096831702,0.002,2061.7,2061.1,1.70477707]
[1772096833015,4.8477189,2062.9,2061.2,0.4918604]
[1772096833195,4.8477189,2062.9,2061.6,0.4918604]
[1772096833196,0.48710597,2062.7,2061.6,0.4918604]
[1772096833597,0.48710597,2062.5,2061.7,1.21259155]
[1772096833907,0.48710597,2062.3,2061.7,1.21259155]
[1772096834579,0.48710597,2062.3,2061.7,1.70445195]
[1772096834784,2.05810597,2062.4,2061.8,0.4918604]
[1772096835384,1.571,2062.4,2061.8,0.4918604]
[1772096835583,1.571,2062.4,2062.0,0.4918604]
[1772096835784,0.48710597,2063.0,2062.3,0.4918604]
[1772096836410,1.69881593,2063.2,2062.3,0.4918604]
[1772096836814,0.48710597,2063.1,2062.3,0.4918604]
[1772096838018,1.21182743,2063.0,2062.4,1.21217998]
[1772096838723,1.69891444,2063.1,2062.4,1.21217998]
[1772096838917,1.69891444,2063.1,2062.4,1.70404038]
[1772096839422,1.69891444,2063.1,2062.4,0.4918604]
[1772096839595,0.48710597,2063.0,2062.2,0.4918604]
[1772096840326,0.48710597,2062.8,2062.2,1.70325557]
[1772096840492,1.21188617,2062.9,2062.2,1.70325557]
[1772096840493,1.21188617,2062.9,2062.3,0.4918604]
[1772096841020,0.002,2062.8,2062.3,0.4918604]
[1772096841721,0.48910597,2062.8,2062.1,4.32784972]
[1772096842113,0.48910597,2062.8,2062.2,0.4918604]
[1772096842313,0.48910597,2062.8,2062.3,1.21223876]
[1772096842720,0.002,2062.8,2062.4,0.4918604]
[1772096843203,0.002,2062.8,2062.1,7.47289625]
[1772096843204,0.002,2062.8,2062.2,1.70411663]
[1772096844528,0.48910597,2062.8,2062.2,1.70411663]
[1772096845342,0.48910597,2062.8,2062.2,0.4918604]
[1772096845836,0.48910597,2062.8,2062.2,1.7041552]
[1772096846140,0.48910597,2062.8,2062.2,1.70415304]
[1772096847354,1.70105329,2062.8,2062.2,1.70415304]
[1772096848737,1.70105329,2062.8,2062.2,0.4918604]
[1772096849043,0.47848413,2062.7,2061.7,1.69139049]
[1772096849226,0.47848413,2062.5,2061.7,1.69139049]
[1772096849423,0.47848413,2062.5,2061.8,0.47879894]
[1772096849750,0.47848413,2062.7,2061.8,0.47879894]
[1772096849920,0.002,2062.8,2062.1,0.47879894]
[1772096850718,0.002,2062.8,2062.4,0.47879894]
[1772096851043,0.002,2063.0,2062.4,0.47879894]
[1772096851264,0.002,2063.0,2062.5,1.69092015]
[1772096853242,0.002,2063.0,2062.6,0.47879894]
[1772096854072,0.002,2063.0,2062.7,1.69080262]
[1772096854569,0.47848413,2063.5,2062.9,0.47879894]
[1772096854769,0.47848413,2063.5,2062.7,0.47879894]
[1772096855348,0.48824836,2063.3,2062.7,0.47879894]
[1772096856242,0.48824836,2063.3,2062.8,0.4804158]
[1772096856437,0.002,2063.3,2062.8,0.4804158]
[1772096856866,1.69770467,2063.7,2062.9,0.4804158]
[1772096857065,0.48624836,2063.7,2062.9,0.4804158]
[1772096857452,0.48624836,2063.8,2062.9,0.4804158]
[1772096858454,1.69765072,2063.8,2063.1,0.4804158]
[1772096858648,0.48624836,2063.8,2063.1,0.4804158]
[1772096859640,0.48624836,2063.8,2062.9,1.2118808]
[1772096859844,0.48624836,2063.8,2062.9,1.6922966]
[1772096860569,1.69766474,2063.7,2063.1,0.4804158]
[1772096860874,0.48624836,2063.6,2063.0,1.6921958]
[1772096861267,1.69764757,2063.8,2063.1,0.4804158]
[1772096861451,0.48624836,2063.7,2063.1,0.4804158]
[1772096861969,0.48624836,2063.7,2062.9,0.4804158]
[1772096862680,1.69754735,2063.9,2063.1,0.4804158]
[1772096862868,0.48624836,2063.8,2063.1,0.4804158]
[1772096863955,0.48624836,2063.8,2063.0,1.21182743]
[1772096863956,0.48624836,2063.8,2062.9,0.4804158]
[1772096864683,0.48624836,2063.8,2062.4,4.84851977]
[1772096864684,0.48624836,2063.5,2062.4,0.4804158]
[1772096864983,1.58,2063.4,2062.4,0.4804158]
[1772096865155,1.21146022,2063.7,2063.0,0.4804158]
[1772096865355,2.79036029,2063.8,2063.0,0.4793158]
[1772096865666,3.27660865,2063.8,2063.0,0.4793158]
[1772096865847,2.79036029,2063.8,2063.0,0.4793158]
[1772096866048,0.48624836,2063.7,2063.0,0.4793158]
[1772096866679,0.48624836,2063.7,2062.7,0.4804158]
[1772096866852,1.21147509,2063.6,2062.9,0.4804158]
[1772096867053,0.48624836,2063.5,2062.9,0.4804158]
[1772096867372,0.48624836,2063.5,2062.9,0.4814158]
[1772096867681,0.48824836,2063.5,2062.9,0.4814158]
[1772096869574,0.48824836,2063.5,2062.9,1.69329245]
[1772096869575,1.69982033,2063.5,2062.9,1.69329245]
[1772096869776,0.48824836,2063.5,2062.9,1.69329245]
[1772096869979,0.002,2063.5,2063.0,0.4804158]
[1772096870683,1.21353676,2063.5,2063.0,0.4804158]
[1772096870985,0.48624836,2063.4,2062.9,0.001]
[1772096871781,1.69787184,2063.4,2062.9,0.001]
[1772096871980,1.21357184,2063.5,2062.9,0.4814158]
[1772096872584,1.6998202,2063.5,2062.9,0.4814158]
[1772096873375,1.21357184,2063.5,2062.9,0.4814158]
[1772096873573,1.69788773,2063.4,2062.9,0.4814158]
[1772096874181,1.21356436,2063.5,2062.9,1.69326884]
[1772096874388,0.002,2063.5,2063.0,0.4804158]
[1772096876207,0.002,2063.5,2063.0,1.69223826]
[1772096876415,0.002,2063.5,2063.0,0.4804158]
[1772096877376,0.002,2063.5,2063.0,1.21182482]
[1772096877580,0.002,2063.5,2063.1,0.46811956]
[1772096878279,0.4760384,2063.5,2062.9,0.46911956]
[1772096878818,1.68546572,2063.7,2063.1,0.46811956]
[1772096879687,0.4740384,2063.7,2063.1,0.46811956]
[1772096879888,0.20561623,2064.0,2063.4,0.46811956]
[1772096880093,0.4740384,2064.3,2063.6,1.48141413]
[1772096880407,0.4740384,2064.4,2063.5,0.46811956]
[1772096880609,0.4740384,2064.3,2063.5,0.46811956]
[1772096880982,0.4740384,2064.3,2063.3,1.147]
[1772096880983,1.573,2064.4,2063.8,1.94953369]
[1772096881201,1.573,2064.4,2063.8,0.46811956]
[1772096881403,2.0470384,2064.4,2063.8,0.46811956]
[1772096881604,0.4740384,2064.3,2063.5,0.46811956]
[1772096881793,0.4740384,2064.3,2063.3,1.61511956]
[1772096881994,0.4740384,2064.2,2063.2,0.001]
[1772096882512,0.4740384,2064.0,2063.2,0.001]
[1772096882709,0.4740384,2063.8,2063.2,0.001]
[1772096884612,1.68545478,2063.7,2063.2,0.001]
[1772096884784,0.4740384,2063.6,2063.2,0.001]
[1772096886721,1.6855722,2063.5,2063.2,0.001]
[1772096889313,0.4740384,2063.4,2063.2,0.001]
[1772096890719,1.21165123,2063.3,2063.2,0.001]
[1772096891133,1.68568963,2063.3,2063.0,0.001]
[1772096891533,0.4740384,2063.2,2063.0,0.001]
[1772096891804,1.21165123,2063.3,2063.0,0.001]
[1772096892539,1.68568963,2063.3,2063.0,0.001]
[1772096894420,0.4740384,2063.3,2063.0,0.001]
[1772096894723,1.68569649,2063.3,2063.0,0.001]
[1772096894929,3.25857503,2063.5,2063.0,0.001]
[1772096895127,3.25857503,2063.5,2063.0,0.46911956]
[1772096895635,3.25857503,2063.5,2063.2,0.001]
[1772096897420,0.4740384,2063.4,2063.0,0.001]
[1772096900249,1.21165123,2063.3,2062.9,0.0008]
[1772096901538,1.68567728,2063.4,2062.9,0.0008]
[1772096901741,1.68567728,2063.4,2062.9,0.46891956]
[1772096901948,0.4740384,2063.4,2062.9,0.46891956]
[1772096902546,0.4740384,2063.4,2062.9,1.68079624]
[1772096902840,1.68563653,2063.4,2062.9,1.68079624]
[1772096903042,1.21159813,2063.4,2063.0,0.46811956]
[1772096907463,2.0470384,2063.5,2063.0,0.46811956]
[1772096907749,3.25858209,2063.5,2063.0,0.46811956]
[1772096908561,0.46309152,2063.4,2063.0,0.46811956]
[1772096908850,0.09251118,2063.4,2063.0,0.46811956]
[1772096909232,0.09251118,2063.4,2063.2,0.001]
[1772096909417,0.002,2063.3,2063.2,0.001]
[1772096910835,0.002,2063.3,2063.2,0.49233572]
[1772096911931,0.002,2063.3,2063.2,0.001]
[1772096912126,3.24762902,2063.5,2063.2,0.001]
[1772096912758,2.03609152,2063.5,2063.2,0.001]
[1772096913142,3.24763669,2063.5,2063.2,0.001]
[1772096914761,2.03609152,2063.5,2063.2,0.001]
[1772096915135,3.2476255,2063.5,2063.2,0.001]
[1772096915659,2.03609152,2063.5,2063.2,0.001]
[1772096916159,2.03609152,2063.5,2063.3,0.49999171]
[1772096916160,1.573,2063.5,2063.3,0.49999171]
[1772096916353,1.573,2063.5,2063.2,0.001]
[1772096916354,1.85642261,2063.5,2063.2,0.001]
[1772096916943,1.85642261,2063.5,2063.2,0.50099171]
[1772096916944,1.38746978,2063.5,2063.2,0.50099171]
[1772096917141,0.46895283,2064.4,2063.3,0.49999171]
[1772096917345,0.46895283,2064.4,2063.2,1.48241413]
[1772096917346,2.04795283,2064.4,2063.6,0.49999171]
[1772096917542,3.2589586,2064.4,2063.6,0.49999171]
[1772096917850,0.46895283,2064.2,2063.3,0.49999171]
[1772096919571,1.68013445,2064.1,2063.5,0.49999171]
[1772096919741,0.46895283,2064.0,2063.5,0.49999171]
[1772096920784,1.68008099,2064.2,2063.5,0.49999171]
[1772096921067,0.46895283,2064.1,2063.5,0.49999171]
[1772096921267,1.21112816,2064.2,2063.2,0.001]
[1772096921268,0.46895283,2063.9,2063.2,0.001]
[1772096921650,0.46895283,2063.7,2063.2,0.001]
[1772096923156,0.46895283,2063.7,2063.2,0.50099171]
[1772096923362,1.21133889,2063.9,2063.2,0.50099171]
[1772096923844,1.21133889,2063.9,2063.4,0.50099171]
[1772096924047,0.002,2063.5,2063.4,0.50099171]
[1772096924344,0.46895283,2063.8,2063.2,0.001]
[1772096925072,0.46895283,2063.6,2063.2,0.001]
[1772096925869,1.2115338,2063.5,2063.2,0.001]
[1772096926075,0.46895283,2063.4,2063.2,0.001]
[1772096929475,2.60297779,2063.5,2063.2,0.001]
[1772096929679,1.577,2063.5,2063.2,0.50099171]
[1772096929988,2.78853449,2063.5,2063.2,0.50099171]
[1772096930843,2.78853449,2063.5,2063.2,0.001]
[1772096931149,3.25748732,2063.5,2063.1,0.001]
[1772096931944,2.04595283,2063.5,2063.1,0.001]
[1772096932148,3.25749865,2063.5,2063.1,0.50099171]
[1772096932348,2.04595283,2063.5,2063.1,0.50099171]
[1772096932574,3.25748717,2063.5,2063.1,0.50099171]
[1772096933672,0.46895283,2063.4,2063.0,0.001]
[1772096935373,0.46895283,2063.2,2063.0,0.001]
[1772096936007,0.49378867,2063.0,2062.5,0.49346335]
[1772096936499,0.49378867,2063.0,2062.3,0.49346335]
[1772096936700,0.49378867,2063.0,2062.4,1.70564046]
[1772096936902,0.49378867,2063.0,2062.5,0.49346335]
[1772096937270,1.581,2063.1,2062.7,0.49346335]
[1772096937705,1.7056161,2063.0,2062.5,0.49346335]
[1772096938314,2.79281331,2063.1,2062.6,0.49446335]
[1772096938693,3.28660198,2063.1,2062.6,0.49446335]
[1772096938882,3.28660198,2063.1,2063.0,0.001]
[1772096939219,3.28660198,2063.1,2062.6,0.49446335]
[1772096939508,3.28660198,2063.1,2062.7,0.001]
[1772096939719,0.49378867,2063.0,2062.7,0.001]
[1772096943036,1.70567484,2062.9,2062.7,0.001]
[1772096943398,0.49378867,2062.8,2062.3,0.49346335]
[1772096943702,1.09021133,2062.7,2062.3,0.49346335]
[1772096944124,0.8688141,2062.7,2062.3,0.49346335]
[1772096944637,1.36260277,2062.7,2062.3,0.49346335]
[1772096945101,1.21206244,2062.6,2062.1,0.49346335]
[1772096945423,2.57465158,2062.7,2062.1,0.49346335]
[1772096946329,0.3688141,2062.7,2062.3,0.49346335]
[1772096946721,1.585,2063.0,2062.3,0.49346335]
[1772096947304,2.79683986,2063.0,2062.5,0.49346335]
[1772096948007,0.49378867,2062.9,2062.3,0.49346335]
[1772096948846,1.585,2063.0,2062.3,0.49346335]
[1772096949154,2.79683136,2063.0,2062.3,0.49346335]
[1772096949341,2.79683136,2063.0,2062.5,0.49346335]
[1772096951047,3.29062003,2063.0,2062.5,0.49346335]
[1772096951257,0.49378867,2062.9,2062.2,0.49346335]
[1772096952157,0.49378867,2062.9,2062.5,0.001]
[1772096952548,0.49578867,2062.8,2062.5,0.001]
[1772096954358,1.7077628,2062.8,2062.5,0.001]
[1772096955131,0.002,2062.8,2062.5,0.001]
[1772096955342,0.002,2062.8,2062.5,0.49446335]
[1772096956969,0.002,2062.8,2062.5,0.001]
[1772096957266,0.49578867,2062.8,2062.5,0.001]
[1772096958669,1.70579235,2062.7,2062.5,0.001]
[1772096959060,0.002,2062.8,2062.5,0.49446335]
[1772096960974,0.49578867,2062.8,2062.5,0.001]
[1772096962881,0.49378867,2062.6,2062.5,0.001]
[1772096963066,0.49378867,2062.6,2062.3,0.001]
[1772096963368,0.49378867,2062.5,2062.0,0.001]
[1772096965062,0.49378867,2062.3,2062.0,0.001]
[1772096965284,0.15697865,2062.3,2062.0,0.001]
[1772096966193,0.15697865,2062.3,2062.2,0.001]
[1772096966399,1.21217998,2062.4,2062.2,0.001]
[1772096967092,1.69167275,2062.5,2062.2,0.001]
[1772096967279,2.79910645,2062.6,2062.2,0.49478925]
[1772096968488,1.587,2062.6,2062.2,0.49478925]
[1772096968680,2.79906813,2062.6,2062.2,0.49478925]
[1772096968891,1.587,2062.6,2062.2,0.49478925]
[1772096969390,2.79906425,2062.6,2062.2,0.49478925]
[1772096969589,1.587,2062.6,2062.2,0.49478925]
[1772096970588,0.002,2062.6,2062.3,0.49378925]
[1772096970904,0.002,2062.8,2062.4,0.49378925]
[1772096971807,0.002,2062.8,2062.5,0.49378925]
[1772096973703,0.002,2062.8,2062.6,0.49378925]
[1772096978612,0.002,2062.8,2062.4,0.49402152]
[1772096978992,0.002,2062.8,2062.6,0.001]
[1772096979197,0.47199648,2062.8,2062.6,0.001]
[1772096979893,0.002,2062.8,2062.6,0.001]
[1772096982649,0.002,2062.8,2062.6,0.49502152]
[1772096984030,0.47199648,2062.8,2062.6,0.001]
[1772096984504,1.68395377,2062.8,2062.6,0.001]
[1772096984709,0.47199648,2062.8,2062.6,0.001]
[1772096985432,0.002,2062.8,2062.6,0.49502152]
[1772096987734,0.47199648,2063.0,2062.6,0.49502152]
[1772096989840,0.002,2063.1,2062.8,0.49402152]
[1772096990013,1.587,2063.2,2063.0,0.49402152]
[1772096991738,1.587,2063.2,2062.7,0.49402152]
[1772096991943,1.587,2063.2,2062.8,0.49502152]
[1772096992143,0.002,2063.0,2062.8,0.49502152]
[1772096992468,3.26870661,2063.2,2062.8,0.49502152]
[1772096992765,1.589,2063.2,2062.8,0.49502152]
[1772096994758,1.589,2063.2,2062.9,0.49402152]
[1772096995824,3.27071541,2063.2,2062.9,0.49402152]
[1772096996146,1.21182743,2063.0,2062.8,0.001]
[1772096996455,0.46763785,2063.0,2062.8,0.001]
[1772096997217,0.46763785,2063.0,2062.6,0.001]
[1772096998558,1.21188617,2062.9,2062.6,0.001]
[1772096998742,1.67952402,2062.9,2062.6,0.001]
[1772096999758,0.46763785,2062.9,2062.6,0.001]
[1772097000256,1.589,2063.2,2062.7,0.46516916]
[1772097000734,1.589,2063.2,2062.8,0.46516916]
[1772097000930,4.84590079,2063.6,2062.9,0.46516916]
[1772097000931,0.46763785,2063.6,2062.9,0.46516916]
[1772097001330,3.26791801,2064.0,2063.2,0.46516916]
[1772097001532,0.46763785,2063.9,2063.2,0.46516916]
[1772097001736,0.46763785,2063.9,2062.9,0.46516916]
[1772097003641,0.46763785,2063.7,2063.0,0.46516916]
[1772097003837,0.46763785,2063.6,2062.6,0.46616916]
[1772097004041,0.46763785,2063.4,2062.6,1.67822317]
[1772097004236,0.46763785,2063.4,2062.6,0.46616916]
[1772097004751,0.46763785,2063.4,2062.7,0.46516916]
[1772097005441,0.46763785,2063.4,2062.7,0.46396916]
[1772097005638,1.21165123,2063.3,2062.7,0.46396916]
[1772097005949,1.21165123,2063.3,2062.8,0.46616916]
[1772097006146,0.46763785,2063.2,2062.8,0.001]
[1772097006347,0.1279262,2063.2,2062.8,0.001]
[1772097007864,0.46763785,2063.0,2062.8,0.001]
[1772097008153,2.05463785,2063.0,2062.8,0.001]
[1772097010163,1.21188617,2062.9,2062.8,0.001]
[1772097011035,3.26650886,2063.0,2062.8,0.001]
[1772097014051,2.05463785,2063.0,2062.8,0.001]
[1772097014861,1.587,2063.0,2062.8,0.001]
[1772097015162,1.587,2063.0,2062.8,0.46616916]
[1772097015345,1.21174016,2063.2,2062.9,0.46516916]
[1772097015856,1.21174016,2063.2,2062.8,0.001]
[1772097016035,0.46763785,2063.1,2062.8,0.001]
[1772097016955,0.46763785,2062.9,2062.6,0.001]
[1772097017170,2.06563785,2062.9,2062.6,0.001]
[1772097018385,1.598,2062.9,2062.6,0.46616916]
[1772097019365,1.598,2062.9,2062.8,0.001]
[1772097021475,2.80988617,2062.9,2062.8,0.001]
[1772097021971,3.27752402,2062.9,2062.8,0.001]
[1772097023271,2.80988617,2062.9,2062.6,0.001]
[1772097023443,0.46763785,2062.8,2062.6,0.001]
[1772097028354,0.45482101,2062.7,2062.6,0.001]
[1772097028564,0.32846867,2062.7,2062.6,0.001]
[1772097028764,0.45482101,2062.6,2062.3,0.001]
[1772097028968,0.45482101,2062.5,2062.3,0.001]
[1772097029172,0.29482101,2062.5,2062.3,0.001]
[1772097031406,1.21217998,2062.4,2062.3,0.001]
[1772097031583,0.29482101,2062.5,2062.3,0.001]
[1772097031880,1.21217998,2062.4,2062.3,0.001]
[1772097032051,1.21217998,2062.4,2062.2,0.001]
[1772097032052,0.45482101,2062.3,2062.1,0.001]
[1772097033681,2.06182101,2062.3,2062.1,0.001]
[1772097034183,1.607,2062.3,2062.1,0.001]
[1772097034588,1.607,2062.3,2062.1,0.47168893]
[1772097034756,1.48258737,2062.8,2062.1,0.47168893]
[1772097034757,1.607,2062.6,2062.1,0.47168893]
[1772097036289,2.81906896,2062.6,2062.1,0.47168893]
[1772097036686,1.607,2062.6,2062.1,1.68403319]
[1772097036883,1.607,2062.6,2062.2,0.4528104]
[1772097037390,3.27193291,2062.9,2062.2,0.4528104]
[1772097038579,3.27193291,2062.9,2062.3,0.4528104]
[1772097038972,0.45002494,2062.8,2062.3,0.4528104]
[1772097039172,0.45002494,2062.8,2062.1,1.66612904]
[1772097039886,0.45002494,2062.7,2062.1,0.001]
[1772097040494,0.45002494,2062.5,2062.1,0.001]
[1772097040787,0.45002494,2062.4,2062.1,0.001]
[1772097040994,1.608,2062.5,2062.1,0.4538104]
[1772097041193,0.002,2062.9,2062.1,0.4538104]
[1772097041996,0.002,2062.9,2062.3,0.4528104]
[1772097042586,0.002,2062.9,2062.5,0.4528104]
[1772097043461,0.002,2063.1,2062.4,1.21217998]
[1772097043462,0.002,2063.1,2062.6,0.4528104]
[1772097044800,0.002,2062.7,2062.6,1.66487284]
[1772097045008,0.002,2062.9,2062.7,0.4528104]
[1772097047000,0.002,2062.9,2062.8,0.4528104]
[1772097047287,0.002,2063.1,2062.8,0.4528104]
[1772097048867,0.002,2063.1,2062.9,1.21188617]
[1772097049193,0.002,2063.1,2062.9,1.66469657]
[1772097050398,0.002,2063.2,2062.9,1.66469657]
[1772097050597,0.002,2064.0,2062.9,1.66469657]
[1772097050598,0.002,2064.0,2063.4,0.4528104]
[1772097050794,0.002,2064.0,2063.5,0.4528104]
[1772097050997,0.002,2064.0,2063.6,1.66428549]
[1772097052806,0.45202494,2064.0,2063.5,1.21149847]
[1772097052970,0.002,2064.0,2063.5,1.66430887]
[1772097053175,0.002,2064.0,2063.6,0.4528104]
[1772097054081,0.002,2064.3,2063.9,0.4528104]
[1772097054270,0.45002494,2064.8,2063.9,0.4528104]
[1772097054473,0.45002494,2065.7,2064.6,0.4528104]
[1772097054770,1.48258737,2065.8,2064.2,0.4528104]
[1772097054771,0.45002494,2065.3,2064.2,0.4528104]
[1772097054972,0.45002494,2065.1,2064.2,0.4528104]
[1772097055313,0.45002494,2065.1,2064.3,0.4528104]
[1772097055314,0.002,2065.0,2064.3,0.4528104]
[1772097055617,0.45202494,2065.0,2064.3,0.4528104]
[1772097056404,0.45165789,2064.9,2064.1,1.68103907]
[1772097058219,1.66242004,2064.9,2064.1,1.68103907]
[1772097059127,0.002,2064.3,2064.1,1.68103907]
[1772097060190,0.002,2064.3,2063.8,1.48258737]
[1772097060191,0.002,2064.2,2063.8,2.32632344]
[1772097060428,0.002,2064.2,2063.8,2.79622252]
[1772097060791,0.45365789,2064.1,2063.5,0.46989908]
[1772097061287,0.002,2064.1,2063.5,0.46989908]
[1772097061489,0.45365789,2064.1,2063.5,0.46989908]
[1772097062121,1.66487365,2064.1,2063.5,0.46989908]
[1772097063028,1.66487365,2064.1,2063.3,1.58589908]
[1772097063029,0.45165789,2064.0,2063.3,1.58589908]
[1772097063195,0.45165789,2064.0,2063.3,2.79754227]
[1772097064196,0.45165789,2064.0,2063.3,1.58589908]
[1772097064390,0.45165789,2063.8,2063.1,1.68163862]
[1772097064596,0.45165789,2063.8,2062.9,1.68278126]
[1772097064792,0.45365789,2063.7,2062.9,1.68278126]
[1772097065020,0.45365789,2063.7,2062.9,1.21288218]
[1772097065231,0.45365789,2063.7,2063.0,0.46989908]
[1772097065437,0.45365789,2063.7,2063.0,0.46869908]
[1772097065732,0.45365789,2063.6,2063.0,0.46869908]
[1772097065913,0.37710629,2063.8,2063.0,0.46869908]
[1772097066115,0.37510629,2063.8,2063.0,0.46869908]
[1772097066431,1.58652267,2063.7,2063.0,0.46869908]
[1772097066621,1.58652267,2063.7,2063.0,1.68052241]
[1772097066802,1.58652267,2063.7,2063.1,0.46989908]
[1772097069004,0.37510629,2064.1,2063.2,0.46989908]
[1772097070431,0.37510629,2064.1,2063.4,0.001]
[1772097070635,0.37510629,2064.0,2063.4,0.001]
[1772097071009,0.37510629,2063.8,2063.4,0.001]
[1772097072932,1.21141638,2063.7,2063.4,0.001]
[1772097074542,1.21130277,2063.9,2063.4,0.47089908]
[1772097074843,4.84686296,2064.1,2063.4,0.47089908]
[1772097074844,1.21319684,2064.1,2063.4,0.47089908]
[1772097075136,0.002,2064.1,2063.5,0.46989908]
[1772097077141,0.002,2064.1,2063.7,0.46989908]
[1772097078344,0.002,2064.3,2063.7,0.46989908]
[1772097079515,0.37910629,2064.3,2063.7,0.46989908]
[1772097079711,0.37710629,2064.2,2063.5,0.46989908]
[1772097079938,0.002,2064.3,2063.5,0.46989908]
[1772097080140,0.002,2064.3,2063.1,0.001]
[1772097080141,0.37710629,2063.8,2063.1,0.001]
[1772097081045,0.37710629,2063.8,2063.1,0.47089908]
[1772097082220,1.21141638,2063.7,2063.1,0.47089908]
[1772097082746,1.21141638,2063.7,2063.3,0.001]
[1772097084653,1.58848124,2063.8,2063.3,0.001]
[1772097086843,1.53848124,2063.8,2063.3,0.001]
[1772097087556,1.21137495,2063.8,2063.3,0.45883046]
[1772097087721,2.80634475,2063.9,2063.3,0.45883046]
[1772097090648,2.80634475,2063.9,2063.4,0.45783046]
[1772097090843,2.80629946,2063.9,2063.4,0.45783046]
[1772097091549,0.002,2063.9,2063.5,0.45783046]
[1772097093764,0.002,2063.9,2063.5,1.21152991]
[1772097094060,0.002,2063.9,2063.6,0.45783046]
[1772097094650,0.002,2063.9,2063.4,0.45783046]
[1772097094651,0.32910629,2063.9,2063.4,0.45783046]
[1772097096083,1.21135768,2063.8,2063.4,0.45783046]
[1772097096879,1.21334399,2063.9,2063.4,0.45783046]
[1772097097267,1.21334399,2063.9,2063.5,0.45491703]
[1772097097671,0.002,2063.9,2063.5,0.45491703]
[1772097097861,1.2133013,2063.9,2063.5,0.45491703]
[1772097098180,0.002,2063.9,2063.6,0.45591703]
[1772097099557,0.002,2063.9,2063.7,0.45491703]
[1772097103083,0.002,2063.9,2063.6,0.001]
[1772097103580,0.002,2063.9,2063.6,0.45591703]
[1772097103993,0.32710629,2063.8,2063.3,0.501]
[1772097104191,1.593,2063.8,2063.1,0.501]
[1772097104379,1.593,2063.8,2063.2,0.5]
[1772097104771,1.21141638,2063.7,2063.2,0.5]
[1772097104964,1.21141638,2063.7,2063.3,0.501]
[1772097105183,1.21141638,2063.7,2063.3,0.5]
[1772097106657,0.002,2064.3,2063.5,0.5]
[1772097106992,1.21047789,2065.3,2064.1,0.5]
[1772097107161,1.21047789,2065.3,2064.3,0.5]
[1772097108792,4.8420954,2065.4,2064.4,1.21100561]
[1772097109089,4.8420954,2065.4,2064.5,0.5]